fUSD/lending_fUSD_20250120
["ID","MTS","AMOUNT","RATE_DAILY","PERIOD"]
[349754953,1737413478152,-500.0,0.00021643,2]
[349754954,1737413478162,-500.0,0.00021643,2]
[349754955,1737413478173,-544.3,0.00021643,2]
[349754956,1737413478184,-500.0,0.00021643,2]
[349754957,1737413478196,-500.0,0.00021643,2]
[349754958,1737413478206,-500.0,0.00021643,2]
[349754959,1737413478216,-668.05,0.00021643,2]
[349754960,1737413478227,-505.78,0.00021643,2]
[349754961,1737413478238,-569.13,0.00021643,2]
[349754962,1737413478248,-621.99,0.00021643,2]
[349754963,1737413478258,-628.24,0.00021643,2]
[349754964,1737413478269,-500.0,0.00021643,2]
[349754965,1737413478280,-500.0,0.00021643,2]
[349754966,1737413478290,-1327.66,0.00021643,2]
[349754967,1737413478300,-500.0,0.00021643,2]
[349754968,1737413478310,-500.0,0.00021643,2]
[349754969,1737413478320,-500.0,0.00021643,2]
[349754970,1737413478331,-561.33,0.00021643,2]
[349754971,1737413478340,-500.0,0.00021643,2]
[349754972,1737413478351,-500.0,0.00021643,2]
[349754973,1737413478361,-537.85316069,0.00021643,2]
[349754974,1737413478371,-500.0,0.00021643,2]
[349754975,1737413478381,-500.0,0.00021643,2]
[349754976,1737413478392,-528.71,0.00021643,2]
[349754977,1737413478403,-501.3,0.00021643,2]
[349754978,1737413478413,-500.0,0.00021643,2]
[349754979,1737413478423,-500.0,0.00021643,2]
[349754980,1737413478434,-500.0,0.00021643,2]
[349754981,1737413478444,-586.84,0.00021643,2]
[349754982,1737413478454,-500.0,0.00021643,2]
[349754983,1737413478464,-500.0,0.00021643,2]
[349754984,1737413478474,-501.588696,0.00021643,2]
[349754985,1737413478488,-500.0,0.00021643,2]
[349754986,1737413478509,-500.0,0.00021643,2]
[349754987,1737413478530,-500.0,0.00021643,2]
[349754988,1737413478544,-500.0,0.00021643,2]
[349754989,1737413478554,-614.99,0.00021643,2]
[349754990,1737413478566,-500.0,0.00021643,2]
[349754991,1737413478576,-383.683733,0.00021643,2]
[349754992,1737413478586,-500.0,0.00021643,2]
[349754993,1737413478595,-316.05347278,0.00021643,2]
[349754994,1737413478605,-500.0,0.00021643,2]
[349754995,1737413478615,-670.14,0.00021643,2]
[349754996,1737413478625,-500.0,0.00021643,2]
[349754997,1737413478634,-500.0,0.00021643,2]
[349754998,1737413478644,-500.0,0.00021643,2]
[349754999,1737413478654,-500.0,0.00021643,2]
[349755000,1737413478768,-619.69,0.00021643,2]
[349755001,1737413478779,-500.0,0.00021643,2]
[349755002,1737413478789,-500.0,0.00021643,2]
[349755003,1737413478799,-500.0,0.00021643,2]
[349755004,1737413478808,-500.0,0.00021643,2]
[349755005,1737413478818,-500.0,0.00021643,2]
[349755006,1737413478827,-500.0,0.00021643,2]
[349755007,1737413478837,-500.0,0.00021643,2]
[349755008,1737413478847,-500.0,0.00021643,2]
[349755009,1737413478856,-500.0,0.00021643,2]
[349755010,1737413478866,-500.0,0.00021643,2]
[349755011,1737413478875,-400.88495016,0.00021643,2]
[349755012,1737413478884,-644.46,0.00021643,2]
[349755013,1737413478893,-500.0,0.00021643,2]
[349755014,1737413478903,-500.0,0.00021643,2]
[349755015,1737413478913,-500.0,0.00021643,2]
[349755016,1737413478923,-500.0,0.00021643,2]
[349755017,1737413478932,-500.0,0.00021643,2]
[349755018,1737413478942,-500.0,0.00021643,2]
[349755019,1737413478952,-449.11383217,0.00021643,2]
[349755020,1737413478963,-500.0,0.00021643,2]
[349755021,1737413478972,-500.0,0.00021643,2]
[349755022,1737413478983,-751.43,0.00021643,2]
[349755023,1737413478993,-506.46,0.00021643,2]
[349755024,1737413479003,-500.0,0.00021643,2]
[349755025,1737413479013,-500.0,0.00021643,2]
[349755026,1737413479023,-500.0,0.00021643,2]
[349755027,1737413479033,-500.0,0.00021643,2]
[349755028,1737413479044,-3094.83,0.00021643,2]
[349755029,1737413479053,-779.28,0.00021643,2]
[349755030,1737413479063,-681.53,0.00021643,2]
[349755031,1737413479072,-731.31,0.00021643,2]
[349755032,1737413479082,-706.91,0.00021643,2]
[349755033,1737413479092,-500.0,0.00021643,2]
[349755034,1737413479102,-2293.51,0.00021643,2]
[349755035,1737413479112,-748.4,0.00021643,2]
[349755036,1737413479122,-500.0,0.00021643,2]
[349755037,1737413479132,-848.41,0.00021643,2]
[349755038,1737413479142,-564.27,0.00021643,2]
[349755039,1737413479152,-500.0,0.00021643,2]
[349755040,1737413479162,-654.07,0.00021643,2]
[349755041,1737413479176,-367.97180898,0.00021643,2]
[349755042,1737413479189,-1248.73,0.00021643,2]
[349755043,1737413479199,-500.0,0.00021643,2]
[349755044,1737413479210,-500.0,0.00021643,2]
[349755045,1737413479219,-2758.73,0.00021643,2]
[349755046,1737413479231,-2295.91,0.00021643,2]
[349755047,1737413479241,-1000.0,0.00021643,2]
[349755048,1737413479251,-646.18,0.00021643,2]
[349755049,1737413479261,-1564.22,0.00021643,2]
[349755050,1737413479271,-500.07,0.00021643,2]
[349755051,1737413479282,-500.0,0.00021643,2]
[349755052,1737413479292,-683.62,0.00021643,2]
[349755053,1737413479302,-500.0,0.00021643,2]
[349755054,1737413479311,-722.8,0.00021643,2]
[349755055,1737413479321,-697.29,0.00021643,2]
[349755056,1737413479331,-898.11,0.00021643,2]
[349755057,1737413479341,-500.0,0.00021643,2]
[349755058,1737413479350,-500.0,0.00021643,2]
[349755059,1737413479360,-500.0,0.00021643,2]
[349755060,1737413479371,-2305.31,0.00021643,2]
[349755061,1737413479380,-500.0,0.00021643,2]
[349755062,1737413479390,-812.06,0.00021643,2]
[349755063,1737413479401,-500.0,0.00021643,2]
[349755064,1737413479411,-500.0,0.00021643,2]
[349755065,1737413479421,-500.0,0.00021643,2]
[349755066,1737413479432,-500.0,0.00021643,2]
[349755067,1737413479443,-500.0,0.00021643,2]
[349755068,1737413479454,-707.47,0.00021643,2]
[349755069,1737413479464,-500.0,0.00021643,2]
[349755070,1737413479474,-2089.96,0.00021643,2]
[349755071,1737413479484,-500.0,0.00021643,2]
[349755072,1737413479494,-2404.67,0.00021643,2]
[349755073,1737413479504,-1285.53,0.00021643,2]
[349755074,1737413479514,-516.56,0.00021643,2]
[349755075,1737413479524,-622.58,0.00021643,2]
[349755076,1737413479534,-500.0,0.00021643,2]
[349755077,1737413479544,-500.0,0.00021643,2]
[349755078,1737413479554,-500.0,0.00021643,2]
[349755079,1737413479564,-1545.38,0.00021643,2]
[349755080,1737413479573,-2498.45,0.00021643,2]
[349755081,1737413479583,-500.0,0.00021643,2]
[349755082,1737413479592,-1528.46,0.00021643,2]
[349755083,1737413479602,-500.0,0.00021643,2]
[349755084,1737413479612,-500.0,0.00021643,2]
[349755085,1737413479622,-3714.97,0.00021643,2]
[349755086,1737413479632,-1768.18,0.00021643,2]
[349755087,1737413479642,-1018.93,0.00021643,2]
[349755088,1737413479651,-2404.9,0.00021643,2]
[349755089,1737413479660,-664.32,0.00021643,2]
[349755090,1737413479671,-1006.19,0.00021643,2]
[349755091,1737413479680,-3714.06,0.00021643,2]
[349755092,1737413479690,-925.74,0.00021643,2]
[349755093,1737413479700,-632.97,0.00021643,2]
[349755094,1737413479710,-2070.27,0.00021643,2]
[349755095,1737413479720,-1247.49,0.00021643,2]
[349755096,1737413479729,-655.67,0.00021643,2]
[349755097,1737413479739,-734.26,0.00021643,2]
[349755098,1737413479749,-1029.79,0.00021643,2]
[349755099,1737413479759,-1125.45,0.00021643,2]
[349755100,1737413479769,-1781.2,0.00021643,2]
[349755101,1737413479779,-500.0,0.00021643,2]
[349755102,1737413479789,-1246.2,0.00021643,2]
[349755103,1737413479798,-1253.16,0.00021643,2]
[349755104,1737413479808,-582.69731645,0.00021643,2]
[349755105,1737413479818,-500.0,0.00021643,2]
[349755106,1737413479828,-500.0,0.00021643,2]
[349755107,1737413479837,-1118.64,0.00021643,2]
[349755108,1737413479847,-719.99,0.00021643,2]
[349755109,1737413479857,-500.0,0.00021643,2]
[349755110,1737413479866,-864.45,0.00021643,2]
[349755111,1737413479876,-3211.18,0.00021643,2]
[349755112,1737413479885,-1259.28,0.00021643,2]
[349755113,1737413479894,-584.09,0.00021643,2]
[349755114,1737413479903,-500.0,0.00021643,2]
[349755115,1737413479912,-500.0,0.00021643,2]
[349755116,1737413479922,-1439.49,0.00021643,2]
[349755117,1737413479932,-2420.13,0.00021643,2]
[349755118,1737413479942,-1512.65,0.00021643,2]
[349755119,1737413479952,-804.6,0.00021643,2]
[349755120,1737413479963,-1094.44,0.00021643,2]
[349755121,1737413479972,-4105.14,0.00021643,2]
[349755122,1737413479982,-500.0,0.00021643,2]
[349755123,1737413479992,-2309.98,0.00021643,2]
[349755124,1737413480002,-1161.24,0.00021643,2]
[349755125,1737413480012,-1981.88,0.00021643,2]
[349755126,1737413480021,-1549.06,0.00021643,2]
[349755127,1737413480031,-1608.56,0.00021643,2]
[349755128,1737413480041,-1093.11,0.00021643,2]
[349755129,1737413480050,-845.76,0.00021643,2]
[349755130,1737413480061,-500.0,0.00021643,2]
[349755131,1737413480071,-2649.0,0.00021643,2]
[349755132,1737413480080,-500.0,0.00021643,2]
[349755133,1737413480090,-500.0,0.00021643,2]
[349755134,1737413480100,-881.77,0.00021643,2]
[349755135,1737413480110,-1503.8,0.00021643,2]
[349755136,1737413480120,-1140.51,0.00021643,2]
[349755137,1737413480130,-2925.51,0.00021643,2]
[349755138,1737413480140,-577.32,0.00021643,2]
[349755139,1737413480151,-500.0,0.00021643,2]
[349755140,1737413480160,-927.97,0.00021643,2]
[349755141,1737413480170,-2594.35,0.00021643,2]
[349755142,1737413480180,-500.0,0.00021643,2]
[349755143,1737413480195,-507.59,0.00021643,2]
[349755144,1737413480303,-500.0,0.00021643,2]
[349755145,1737413480313,-500.0,0.00021643,2]
[349755146,1737413480323,-1661.79,0.00021643,2]
[349755147,1737413480333,-649.35,0.00021643,2]
[349755148,1737413480343,-1410.08,0.00021643,2]
[349755149,1737413480353,-848.08,0.00021643,2]
[349755150,1737413480363,-2182.08,0.00021643,2]
[349755151,1737413480372,-846.0,0.0002167,2]
[349755152,1737413480382,-500.0,0.00021679,2]
[349755153,1737413480391,-5171.03,0.00021685,7]
[349755154,1737413480400,-5171.03,0.00021685,7]
[349755155,1737413480410,-5171.03,0.00021685,7]
[349755156,1737413480419,-5171.03,0.00021685,7]
[349755157,1737413480429,-20876.886,0.000217,2]
[349755158,1737413480439,-1000.0,0.000217,2]
[349755159,1737413480449,-1019.57717217,0.000217,2]
[349755160,1737413480459,-1770.47049242,0.00021722,2]
[349755161,1737413480468,-200.0,0.00021732,2]
[349755162,1737413480478,-7007.79675856,0.00021736,2]
[349755163,1737413480488,-7007.79675856,0.00021739,2]
[349755164,1737413480498,-581.17328097,0.00021739,2]
[349755165,1737413480507,-150.0,0.00021745,2]
[349755166,1737413480517,-236.01321803,0.00021748,2]
[349755167,1737413480526,-150.0,0.00021748,2]
[349755168,1737413480535,-150.0,0.00021756,2]
[349755169,1737413480544,-200.0,0.00021766,2]
[349755170,1737413480554,-204.55255995,0.00021767,3]
[349755171,1737413480563,-150.0,0.00021767,2]
[349755172,1737413480572,-200.0,0.0002177,2]
[349755173,1737413480582,-48634.16383174,0.00021771,2]
[349755174,1737413480591,-236.01321803,0.00021782,2]
[349755175,1737413480600,-581.17328097,0.00021783,2]
[349755176,1737413480610,-2877.27285441,0.00021783,2]
[349755177,1737413480620,-48634.16383174,0.00021784,2]
[349755178,1737413480629,-150.0,0.00021786,2]
[349755179,1737413480639,-350.0,0.00021788,2]
[349755180,1737413480647,-2877.27285441,0.00021791,2]
[349755181,1737413480657,-4139.81058984,0.00021793,2]
[349755182,1737413480666,-7007.79675856,0.00021795,2]
[349755183,1737413480676,-150.0,0.00021796,2]
[349755184,1737413480685,-581.17328097,0.00021796,2]
[349755185,1737413480695,-1000.0,0.000218,2]
[349755186,1737413480705,-1000.0,0.000218,2]
[349755187,1737413480715,-135362.49683184,0.000218,2]
[349755188,1737413480724,-1019.57717216,0.000218,2]
[349755189,1737413480734,-581.17328097,0.00021808,2]
[349755190,1737413480743,-2877.27285441,0.00021812,2]
[349755191,1737413480753,-150.0,0.00021812,2]
[349755192,1737413480762,-48634.16383174,0.00021813,2]
[349755193,1737413480772,-4139.81058984,0.00021814,2]
[349755194,1737413480781,-48634.16383174,0.00021815,2]
[349755195,1737413480791,-500.0,0.00021816,2]
[349755196,1737413480800,-4067.91833511,0.00021816,2]
[349755197,1737413480810,-832.0,0.00021817,2]
[349755198,1737413480819,-1720.31,0.00021817,2]
[349755199,1737413480828,-500.0,0.00021817,2]
[349755200,1737413480838,-500.0,0.00021817,2]
[349755201,1737413480847,-1971.63,0.00021817,2]
[349755202,1737413480858,-675.9,0.00021817,2]
[349755203,1737413480867,-500.0,0.00021817,2]
[349755204,1737413480877,-629.03,0.00021817,2]
[349755205,1737413480886,-554.35,0.00021817,2]
[349755206,1737413480895,-862.45,0.00021817,2]
[349755207,1737413480905,-760.23,0.00021817,2]
[349755208,1737413480915,-1302.02,0.00021817,2]
[349755209,1737413480925,-931.99,0.00021817,2]
[349755210,1737413480946,-734.92,0.00021817,2]
[349755211,1737413480961,-2217.99,0.00021817,2]
[349755212,1737413480980,-4359.78,0.00021817,2]
[349755213,1737413481000,-691.85,0.00021817,2]
[349755214,1737413481016,-736.95,0.00021817,2]
[349755215,1737413481034,-2335.99,0.00021817,2]
[349755216,1737413481053,-500.0,0.00021817,2]
[349755217,1737413481075,-753.44,0.00021817,2]
[349755218,1737413481092,-1162.69,0.00021817,2]
[349755219,1737413481111,-2943.19201998,0.00021818,2]
[349755220,1737413481125,-150.0,0.0002182,2]
[349755221,1737413481143,-8500.0,0.00021821,2]
[349755222,1737413481157,-2943.19201998,0.00021822,2]
[349755223,1737413481174,-581.17328097,0.00021822,2]
[349755224,1737413481190,-4067.91833511,0.00021823,2]
[349755225,1737413481207,-2877.27285441,0.00021823,2]
[349755226,1737413481223,-500.0,0.00021824,2]
[349755227,1737413481240,-935.2,0.00021826,30]
[349755228,1737413481256,-2877.27285441,0.00021826,2]
[349755229,1737413481273,-4067.91833511,0.00021829,2]
[349755230,1737413481289,-7007.79675856,0.00021831,2]
[349755231,1737413481305,-150.0,0.00021832,2]
[349755232,1737413481322,-48634.16383174,0.00021837,2]
[349755233,1737413481338,-200.0,0.0002184,2]
[349755234,1737413481355,-2943.19201998,0.00021841,2]
[349755235,1737413481372,-236.01321803,0.00021841,2]
[349755236,1737413481388,-1920.70730681,0.0002185,2]
[349755237,1737413481404,-7007.79675856,0.00021852,2]
[349755238,1737413481420,-2943.19201998,0.00021862,2]
[349755239,1737413481435,-4139.81058984,0.00021873,2]
[349755240,1737413481451,-236.01321803,0.00021875,2]
[349755241,1737413481467,-4139.81058984,0.00021882,2]
[349755242,1737413481482,-4067.91833511,0.00021883,2]
[349755243,1737413481497,-4067.91833511,0.0002189,2]
[349755244,1737413481513,-2000.0,0.0002189,2]
[349755245,1737413481528,-150.0,0.0002189,2]
[349755246,1737413481543,-500.0,0.0002189,2]
[349755247,1737413481559,-500.0,0.0002189,2]
[349755248,1737413481575,-500.0,0.0002189,2]
[349755249,1737413481591,-500.0,0.0002189,2]
[349755250,1737413481607,-500.0,0.0002189,2]
[349755251,1737413481621,-448.96,0.0002189,2]
[349755252,1737413481636,-554.1521,0.0002189,2]
[349755253,1737413481652,-500.0,0.0002189,2]
[349755254,1737413481666,-150.0,0.0002189,4]
[349755255,1737413481683,-150.0,0.0002189,4]
[349755256,1737413481698,-150.0,0.0002189,4]
[349755257,1737413481714,-150.40627047,0.0002189,4]
[349755258,1737413481729,-236.01321803,0.00021892,2]
[349755259,1737413481748,-150.0,0.00021892,2]
[349755260,1737413481764,-4139.81058984,0.00021895,2]
[349755261,1737413481781,-2943.19201998,0.00021897,2]
[349755262,1737413481796,-1000.0,0.00021899,2]
[349755263,1737413481811,-1093.69,0.000219,2]
[349755264,1737413481828,-22576.6381,0.000219,2]
[349755265,1737413481844,-1827.7576,0.000219,2]
[349755266,1737413481859,-2282.5399,0.000219,2]
[349755267,1737413481875,-2508.723,0.000219,2]
[349755268,1737413481891,-688.86947225,0.000219,2]
[349755269,1737413481907,-31881.03002702,0.000219,2]
[349755270,1737413481922,-1000.0,0.000219,2]
[349755271,1737413481938,-189.22168766,0.000219,2]
[349755272,1737413481952,-5026.91649023,0.000219,2]
[349755273,1737413481968,-1973.86,0.000219,31]
[349755274,1737413481982,-1973.86,0.000219,31]
[349755275,1737413481999,-1973.86,0.000219,31]
[349755276,1737413482150,-1973.86,0.000219,31]
[349755277,1737413482159,-1973.86,0.000219,31]
[349755278,1737413482170,-1973.86,0.000219,31]
[349755279,1737413482180,-1973.86,0.000219,31]
[349755280,1737413482193,-1973.86,0.000219,31]
[349755281,1737413482203,-1973.86,0.000219,31]
[349755282,1737413482212,-1973.86,0.000219,31]
[349755283,1737413482222,-1973.86,0.000219,31]
[349755284,1737413482233,-1973.86,0.000219,31]
[349755285,1737413482244,-1973.86,0.000219,31]
[349755286,1737413482254,-1973.86,0.000219,31]
[349755287,1737413482265,-1920.70730681,0.000219,2]
[349755288,1737413482276,-22308.13201168,0.000219,2]
[349755289,1737413482285,-1019.57717216,0.000219,2]
[349755290,1737413482294,-204.55255995,0.000219,3]
[349755291,1737413482303,-1762.0,0.000219,2]
[349755292,1737413482313,-150.0,0.00021912,2]
[349755293,1737413482322,-5800.0,0.00021915,2]
[349755294,1737413482331,-467.27700577,0.00021917,2]
[349755295,1737413482340,-500.0,0.00021917,2]
[349755296,1737413482349,-544.3,0.00021917,2]
[349755297,1737413482359,-500.0,0.00021917,2]
[349755298,1737413482368,-500.0,0.00021917,2]
[349755299,1737413482377,-418.74122655,0.00021917,2]
[349755300,1737413482386,-668.05,0.00021917,2]
[349755301,1737413482395,-505.78,0.00021917,2]
[349755302,1737413482405,-569.13,0.00021917,2]
[349755303,1737413482414,-621.99,0.00021917,2]
[349755304,1737413482424,-628.24,0.00021917,2]
[349755305,1737413482433,-500.0,0.00021917,2]
[349755306,1737413482443,-500.0,0.00021917,2]
[349755307,1737413482453,-1327.66,0.00021917,2]
[349755308,1737413482462,-174.09317278,0.00021917,2]
[349755309,1737413482471,-500.0,0.00021917,2]
[349755310,1737413482481,-500.0,0.00021917,2]
[349755311,1737413482491,-561.33,0.00021917,2]
[349755312,1737413482500,-500.0,0.00021917,2]
[349755313,1737413482509,-500.0,0.00021917,2]
[349755314,1737413482519,-500.0,0.00021917,2]
[349755315,1737413482528,-500.0,0.00021917,2]
[349755316,1737413482537,-501.3,0.00021917,2]
[349755317,1737413482547,-528.71,0.00021917,2]
[349755318,1737413482556,-210.51419676,0.00021917,2]
[349755319,1737413482566,-500.0,0.00021917,2]
[349755320,1737413482576,-500.0,0.00021917,2]
[349755321,1737413482585,-586.84,0.00021917,2]
[349755322,1737413482596,-500.0,0.00021917,2]
[349755323,1737413482605,-500.0,0.00021917,2]
[349755324,1737413482615,-501.588696,0.00021917,2]
[349755325,1737413482625,-500.0,0.00021917,2]
[349755326,1737413482635,-500.0,0.00021917,2]
[349755327,1737413482645,-500.0,0.00021917,2]
[349755328,1737413482654,-500.0,0.00021917,2]
[349755329,1737413482664,-614.99,0.00021917,2]
[349755330,1737413482674,-500.0,0.00021917,2]
[349755331,1737413482683,-383.683733,0.00021917,2]
[349755332,1737413482693,-500.0,0.00021917,2]
[349755333,1737413482703,-500.0,0.00021917,2]
[349755334,1737413482713,-670.14,0.00021917,2]
[349755335,1737413482723,-500.0,0.00021917,2]
[349755336,1737413482733,-500.0,0.00021917,2]
[349755337,1737413482746,-500.0,0.00021917,2]
[349755338,1737413482756,-500.0,0.00021917,2]
[349755339,1737413482766,-619.69,0.00021917,2]
[349755340,1737413482775,-500.0,0.00021917,2]
[349755341,1737413482784,-500.0,0.00021917,2]
[349755342,1737413482794,-500.0,0.00021917,2]
[349755343,1737413482803,-500.0,0.00021917,2]
[349755344,1737413482812,-500.0,0.00021917,2]
[349755345,1737413482822,-500.0,0.00021917,2]
[349755346,1737413482831,-500.0,0.00021917,2]
[349755347,1737413482841,-500.0,0.00021917,2]
[349755348,1737413482850,-500.0,0.00021917,2]
[349755349,1737413482859,-644.46,0.00021917,2]
[349755350,1737413482869,-500.0,0.00021917,2]
[349755351,1737413482878,-500.0,0.00021917,2]
[349755352,1737413482887,-500.0,0.00021917,2]
[349755353,1737413482897,-500.0,0.00021917,2]
[349755354,1737413482906,-500.0,0.00021917,2]
[349755355,1737413482915,-500.0,0.00021917,2]
[349755356,1737413482924,-500.0,0.00021917,2]
[349755357,1737413482933,-751.43,0.00021917,2]
[349755358,1737413482943,-500.0,0.00021917,2]
[349755359,1737413482952,-500.0,0.00021917,2]
[349755360,1737413482961,-500.0,0.00021917,2]
[349755361,1737413482971,-500.0,0.00021917,2]
[349755362,1737413482980,-3094.83,0.00021917,2]
[349755363,1737413482990,-779.28,0.00021917,2]
[349755364,1737413483000,-681.53,0.00021917,2]
[349755365,1737413483010,-731.31,0.00021917,2]
[349755366,1737413483019,-706.91,0.00021917,2]
[349755367,1737413483029,-500.0,0.00021917,2]
[349755368,1737413483038,-2293.51,0.00021917,2]
[349755369,1737413483048,-748.4,0.00021917,2]
[349755370,1737413483057,-500.0,0.00021917,2]
[349755371,1737413483066,-848.41,0.00021917,2]
[349755372,1737413483075,-564.27,0.00021917,2]
[349755373,1737413483084,-500.0,0.00021917,2]
[349755374,1737413483093,-654.07,0.00021917,2]
[349755375,1737413483103,-1248.73,0.00021917,2]
[349755376,1737413483112,-500.0,0.00021917,2]
[349755377,1737413483122,-500.0,0.00021917,2]
[349755378,1737413483132,-2295.91,0.00021917,2]
[349755379,1737413483142,-2758.73,0.00021917,2]
[349755380,1737413483152,-1000.0,0.00021917,2]
[349755381,1737413483162,-646.18,0.00021917,2]
[349755382,1737413483171,-1564.22,0.00021917,2]
[349755383,1737413483181,-500.07,0.00021917,2]
[349755384,1737413483193,-500.0,0.00021917,2]
[349755385,1737413483202,-683.62,0.00021917,2]
[349755386,1737413483211,-500.0,0.00021917,2]
[349755387,1737413483221,-722.8,0.00021917,2]
[349755388,1737413483231,-697.29,0.00021917,2]
[349755389,1737413483240,-898.11,0.00021917,2]
[349755390,1737413483250,-500.0,0.00021917,2]
[349755391,1737413483259,-500.0,0.00021917,2]
[349755392,1737413483272,-500.0,0.00021917,2]
[349755393,1737413483283,-2305.31,0.00021917,2]
[349755394,1737413483292,-500.0,0.00021917,2]
[349755395,1737413483302,-812.06,0.00021917,2]
[349755396,1737413483312,-500.0,0.00021917,2]
[349755397,1737413483321,-604.21,0.00021917,2]
[349755398,1737413483331,-500.0,0.00021917,2]
[349755399,1737413483341,-500.0,0.00021917,2]
[349755400,1737413483351,-707.47,0.00021917,2]
[349755401,1737413483360,-500.0,0.00021917,2]
[349755402,1737413483369,-2089.96,0.00021917,2]
[349755403,1737413483379,-500.0,0.00021917,2]
[349755404,1737413483388,-2404.67,0.00021917,2]
[349755405,1737413483398,-1285.53,0.00021917,2]
[349755406,1737413483407,-516.56,0.00021917,2]
[349755407,1737413483416,-622.58,0.00021917,2]
[349755408,1737413483425,-500.0,0.00021917,2]
[349755409,1737413483435,-189.87526503,0.00021917,2]
[349755410,1737413483445,-500.0,0.00021917,2]
[349755411,1737413483455,-1545.38,0.00021917,2]
[349755412,1737413483465,-2498.45,0.00021917,2]
[349755413,1737413483475,-500.0,0.00021917,2]
[349755414,1737413483484,-1528.46,0.00021917,2]
[349755415,1737413483494,-500.0,0.00021917,2]
[349755416,1737413483503,-500.0,0.00021917,2]
[349755417,1737413483512,-3714.97,0.00021917,2]
[349755418,1737413483522,-1768.18,0.00021917,2]
[349755419,1737413483531,-1018.93,0.00021917,2]
[349755420,1737413483541,-2404.9,0.00021917,2]
[349755421,1737413483551,-664.32,0.00021917,2]
[349755422,1737413483560,-1006.19,0.00021917,2]
[349755423,1737413483569,-3714.06,0.00021917,2]
[349755424,1737413483579,-925.74,0.00021917,2]
[349755425,1737413483588,-632.97,0.00021917,2]
[349755426,1737413483598,-2070.27,0.00021917,2]
[349755427,1737413483608,-1247.49,0.00021917,2]
[349755428,1737413483617,-655.67,0.00021917,2]
[349755429,1737413483627,-734.26,0.00021917,2]
[349755430,1737413483637,-1029.79,0.00021917,2]
[349755431,1737413483647,-500.0,0.00021917,3]
[349755432,1737413483656,-500.0,0.00021917,3]
[349755433,1737413483666,-500.0,0.00021917,3]
[349755434,1737413483676,-500.0,0.00021917,3]
[349755435,1737413483687,-500.0,0.00021917,3]
[349755436,1737413483696,-500.0,0.00021917,3]
[349755437,1737413483706,-500.0,0.00021917,3]
[349755438,1737413483715,-500.0,0.00021917,3]
[349755439,1737413483725,-500.0,0.00021917,3]
[349755440,1737413483735,-1125.45,0.00021917,2]
[349755441,1737413483746,-500.0,0.00021917,3]
[349755442,1737413483755,-500.0,0.00021917,3]
[349755443,1737413483765,-1781.2,0.00021917,2]
[349755444,1737413483775,-500.0,0.00021917,2]
[349755445,1737413483784,-1246.2,0.00021917,2]
[349755446,1737413483793,-1253.16,0.00021917,2]
[349755447,1737413483803,-500.0,0.00021917,2]
[349755448,1737413483812,-500.0,0.00021917,2]
[349755449,1737413483822,-1118.64,0.00021917,2]
[349755450,1737413483831,-719.99,0.00021917,2]
[349755451,1737413483841,-500.0,0.00021917,2]
[349755452,1737413483850,-864.45,0.00021917,2]